bitfinex/quotes_SOLUSD_20220228
["timestamp","ask_amount","ask_price","bid_price","bid_amount"]
[1646085107089,14.76,97.64,97.533,2.75455652]
[1646085107292,39.5045,97.639,97.533,2.75455652]
[1646085107491,21.065263,97.638,97.533,2.75455652]
[1646085107890,5.43782943,97.637,97.533,2.75455652]
[1646085108093,5.43782943,97.637,97.534,2.74678921]
[1646085108892,5.43782943,97.637,97.536,164.53]
[1646085109099,5.43782943,97.637,97.537,2.99350891]
[1646085109294,5.43782943,97.637,97.538,164.53]
[1646085109493,5.43782943,97.637,97.54,164.53]
[1646085109696,5.43782943,97.637,97.541,2.76227765]
[1646085110095,5.43782943,97.637,97.544,2.29598222]
[1646085110595,5.43782943,97.637,97.545,2.74678921]
[1646085112096,4.098,97.659,97.545,2.74678921]
[1646085112396,14.76,97.67,97.552,2.3904341]
[1646085112595,18.8098586,97.689,97.556,164.53]
[1646085112596,4.097,97.684,97.556,164.53]
[1646085112796,2.17164573,97.686,97.571,164.53]
[1646085112997,4.76062129,97.705,97.591,164.53]
[1646085113197,61.3583,97.75,97.591,164.53]
[1646085113198,46.5983,97.75,97.601,164.53]
[1646085113401,20.25878295,97.77,97.602,3.09582518]
[1646085113596,4.094,97.749,97.602,3.09582518]
[1646085113797,5.52631372,97.769,97.603,193.38421158]
[1646085113998,5.52631372,97.769,97.604,2.27513614]
[1646085114199,4.17507812,97.768,97.605,164.53]
[1646085114397,4.094,97.767,97.621,164.53]
[1646085114597,4.094,97.767,97.623,164.53]
[1646085114797,4.094,97.767,97.624,2.71767862]
[1646085115000,4.094,97.767,97.625,164.53]
[1646085115198,4.094,97.767,97.627,164.53]
[1646085115397,4.094,97.767,97.641,164.53]
[1646085115597,4.094,97.767,97.643,164.53]
[1646085115797,4.094,97.767,97.644,3.10735716]
[1646085116000,4.094,97.767,97.654,61.73]
[1646085116198,4.094,97.767,97.671,102.8]
[1646085116399,4.094,97.767,97.693,102.8]
[1646085116599,4.094,97.767,97.702,61.73]
[1646085117500,4.17507812,97.768,97.702,61.73]
[1646085117701,4.17507812,97.768,97.703,61.73]
[1646085118400,4.17507812,97.768,97.707,61.73]
[1646085118603,4.17507812,97.768,97.701,102.8]
[1646085118604,4.17507812,97.768,97.711,164.53]
[1646085118802,4.17507812,97.768,97.711,61.73]
[1646085119901,4.17507812,97.768,97.712,61.73]
[1646085120904,4.17507812,97.768,97.702,61.73]
[1646085122108,4.17507812,97.768,97.674,61.73]
[1646085123309,4.17507812,97.768,97.676,61.73]
[1646085123811,4.17507812,97.768,97.678,61.73]
[1646085124010,1.3960982,97.767,97.678,61.73]
[1646085124609,1.3960982,97.767,97.679,61.73]
[1646085125710,1.3960982,97.767,97.68,61.73]
[1646085126911,1.3960982,97.767,97.676,61.73]
[1646085127130,18.02591486,97.766,97.652,4.093]
[1646085127310,1.64496959,97.765,97.644,51.235]
[1646085127713,184.48,97.74,97.644,4.093]
[1646085127912,199.24,97.73,97.562,2.47412484]
[1646085128112,184.48,97.71,97.565,61.73]
[1646085128313,5.57038657,97.709,97.566,2.76569224]
[1646085128514,1.51222285,97.699,97.567,164.53]
[1646085128814,1.51222285,97.699,97.569,164.53]
[1646085129017,18.02591486,97.698,97.57,4.096]
[1646085129216,1.70596058,97.697,97.571,164.53]
[1646085129416,1.70596058,97.697,97.572,4.096]
[1646085129615,22.78077598,97.696,97.572,4.096]
[1646085129817,22.78077598,97.696,97.571,61.73]
[1646085129818,184.48,97.69,97.571,61.73]
[1646085130016,199.24,97.68,97.564,110.39677212]
[1646085130216,5.66348937,97.679,97.564,110.39677212]
[1646085130417,23.68940423,97.679,97.564,110.39677212]
[1646085130618,1.68573201,97.678,97.561,4.097]
[1646085130819,5.63441675,97.677,97.527,52.4063]
[1646085131021,1.59127656,97.675,97.528,61.73]
[1646085131221,4.098,97.674,97.529,4.098]
[1646085131424,1.44572017,97.659,97.529,4.098]
[1646085131623,8.27307812,97.658,97.531,61.73]
[1646085131821,27.82713052,97.658,97.532,4.098]
[1646085132023,19.60996582,97.657,97.531,61.73]
[1646085132221,1.68263504,97.656,97.531,61.73]
[1646085132522,39.92146342,97.656,97.531,61.73]
[1646085132723,5.53401104,97.655,97.531,61.73]
[1646085133020,1.87149933,97.654,97.531,61.73]
[1646085133221,14.76,97.64,97.531,61.73]
[1646085133424,1.31210769,97.638,97.531,61.73]
[1646085133620,4.099,97.637,97.531,61.73]
[1646085134224,1.79430324,97.635,97.531,61.73]
[1646085134422,4.099,97.634,97.531,61.73]
[1646085134638,14.76,97.62,97.531,61.73]
[1646085134840,5.76934777,97.619,97.531,61.73]
[1646085135539,18.02591486,97.618,97.53,50.84215118]
[1646085135740,5.66864745,97.617,97.492,4.099]
[1646085135941,5.66864745,97.617,97.483,102.8]
[1646085136139,5.66864745,97.617,97.484,4.1]
[1646085136540,1.56964745,97.617,97.491,102.8]
[1646085136742,4.1,97.616,97.492,120.64188825]
[1646085137942,18.02591486,97.615,97.492,116.54188825]
[1646085138141,5.89535773,97.614,97.492,116.54188825]
[1646085138340,3.11863642,97.599,97.492,116.54188825]
[1646085138542,4.1,97.598,97.492,116.54188825]
[1646085139345,1.37097519,97.597,97.492,116.54188825]
[1646085139542,4.1,97.596,97.492,116.54188825]
[1646085139742,5.79401733,97.596,97.483,61.73]
[1646085139941,20.71406363,97.595,97.482,46.2976]
[1646085140142,14.76,97.58,97.482,46.2976]
[1646085140342,1.65794422,97.579,97.482,46.2976]
[1646085140743,4.02210967,97.578,97.483,58.90653708]
[1646085140944,4.02210967,97.578,97.484,61.73]
[1646085141643,4.02210967,97.578,97.484,65.831]
[1646085142044,4.02210967,97.578,97.484,61.73]
[1646085143844,4.02210967,97.578,97.49,164.53]
[1646085144045,14.76,97.58,97.49,164.53]
[1646085144247,14.76,97.6,97.491,3.123175]
[1646085144448,1.75179454,97.599,97.491,3.123175]
[1646085144846,14.76,97.6,97.491,3.123175]
[1646085145047,5.16681235,97.597,97.491,3.123175]
[1646085147750,18.02591486,97.596,97.491,61.73]
[1646085147950,1.7550988,97.595,97.491,61.73]
[1646085148151,14.76,97.59,97.491,61.73]
[1646085148350,1.8545588,97.589,97.491,61.73]
[1646085149854,1.8545588,97.589,97.49,164.53]
[1646085151055,1.8545588,97.589,97.491,2.57525409]
[1646085151660,5.9545588,97.589,97.491,2.57525409]
[1646085151859,5.9545588,97.589,97.491,61.73]
[1646085152760,5.9545588,97.589,97.484,61.73]
[1646085152962,1.8545588,97.589,97.492,61.73]
[1646085153862,1.8545588,97.589,97.484,61.73]
[1646085154963,4.101,97.588,97.484,61.73]
[1646085156967,5.9555588,97.589,97.484,61.73]
[1646085157868,5.9555588,97.589,97.489,102.8]
[1646085158070,5.9555588,97.589,97.49,164.53]
[1646085158670,1.8545588,97.589,97.49,164.53]
[1646085158869,1.8545588,97.589,97.49,61.73]
[1646085159169,1.8545588,97.589,97.491,61.73]
[1646085160574,1.8545588,97.589,97.491,64.50893751]
[1646085160771,1.8545588,97.589,97.491,61.73]
[1646085161190,1.8545588,97.589,97.492,61.73]
[1646085162192,1.8545588,97.589,97.493,61.73]
[1646085162390,14.76,97.59,97.499,61.73]
[1646085162596,14.76,97.59,97.494,23.524]
[1646085162597,18.86,97.61,97.521,61.73]
[1646085162790,1.82531798,97.611,97.521,61.73]
[1646085163592,14.76,97.62,97.528,102.8]
[1646085163793,14.76,97.62,97.533,61.73]
[1646085163994,23.6499,97.638,97.54,102.8]
[1646085164193,23.6499,97.638,97.551,61.73]
[1646085164392,23.6499,97.638,97.552,2.6298838]
[1646085164591,4.28275801,97.637,97.553,164.53]
[1646085165695,4.28275801,97.637,97.553,61.73]
[1646085167097,4.28275801,97.637,97.559,61.73]
[1646085167301,4.28275801,97.637,97.559,164.53]
[1646085167497,4.28275801,97.637,97.56,2.55107162]
[1646085169499,4.28275801,97.637,97.56,64.28107162]
[1646085169700,4.28275801,97.637,97.561,3.07500965]
[1646085169900,4.28275801,97.637,97.57,61.73]
[1646085170201,4.28275801,97.637,97.572,61.73]
[1646085171701,4.28275801,97.637,97.571,55.96801012]
[1646085172201,4.28275801,97.637,97.553,24.8463]
[1646085173003,4.28275801,97.637,97.554,61.73]
[1646085173203,4.28275801,97.637,97.556,61.73]
[1646085174603,4.28275801,97.637,97.553,24.8463]
[1646085174804,20.59144265,97.636,97.504,2.89426294]
[1646085175005,1.681754,97.629,97.504,27.60596294]
[1646085175507,16.77810931,97.628,97.504,27.60596294]
[1646085175704,49.8355842,97.627,97.505,22.8635]
[1646085175908,1.48372808,97.626,97.505,22.8635]
[1646085176103,184.48,97.61,97.505,22.8635]
[1646085176306,14.76,97.6,97.505,22.8635]
[1646085176505,5.48828574,97.599,97.505,22.8635]
[1646085176705,1.2044278,97.598,97.486,49.13049729]
[1646085176905,24.1367,97.597,97.486,49.13049729]
[1646085177106,1.72906195,97.596,97.487,61.73]
[1646085177305,1.72906195,97.596,97.489,164.53]
[1646085178109,1.72906195,97.596,97.491,61.73]
[1646085178406,24.1367,97.597,97.507,61.73]
[1646085178606,24.1367,97.597,97.509,164.53]
[1646085179507,1.2044278,97.598,97.51,2.79817451]
[1646085181209,1.2044278,97.598,97.512,2.8358768]
[1646085184709,1.2044278,97.598,97.511,61.73]
[1646085184908,1.2044278,97.598,97.509,61.73]
[1646085187312,1.2044278,97.598,97.515,61.73]
[1646085187511,1.2044278,97.598,97.517,61.73]
[1646085188514,1.2044278,97.598,97.518,61.73]
[1646085189513,1.2044278,97.598,97.508,24.2946]
[1646085189716,1.76219411,97.596,97.508,24.2946]
[1646085190112,37.57996726,97.595,97.508,24.2946]
[1646085190314,14.76,97.58,97.508,24.2946]
[1646085190516,5.76893356,97.579,97.508,24.2946]
[1646085193017,5.76893356,97.579,97.509,49.35765314]
[1646085193420,5.76893356,97.579,97.508,24.2946]
[1646085194121,5.76893356,97.579,97.471,61.73]
[1646085194320,19.20799425,97.578,97.473,61.73]
[1646085194520,17.54576553,97.578,97.473,61.73]
[1646085194744,1.48828084,97.576,97.468,4.101]
[1646085194948,4.101,97.575,97.468,4.101]
[1646085195142,53.16662881,97.575,97.468,4.101]
[1646085195343,19.28694133,97.574,97.468,4.101]
[1646085195543,14.76,97.56,97.468,4.101]
[1646085195741,2.84894635,97.559,97.468,4.101]
[1646085195942,20.39471188,97.559,97.468,4.101]
[1646085196144,1.78069016,97.558,97.468,4.101]
[1646085197643,102.8,97.556,97.468,4.101]
[1646085197842,1.62868032,97.555,97.468,4.101]
[1646085198043,4.102,97.554,97.468,4.101]
[1646085198242,14.76,97.54,97.468,4.101]
[1646085198449,6.12220339,97.539,97.468,4.101]
[1646085198645,46.26516399,97.539,97.468,4.101]
[1646085198843,1.78429635,97.538,97.468,4.101]
[1646085199443,4.102,97.537,97.468,4.101]
[1646085199643,1.59285635,97.536,97.468,4.101]
[1646085199845,4.102,97.535,97.468,4.101]
[1646085200044,14.76,97.52,97.468,4.101]
[1646085200244,2.59326062,97.519,97.468,4.101]
[1646085202553,1.2044278,97.519,97.468,4.101]
[1646085203248,1.2044278,97.519,97.468,3.06843917]
[1646085206154,1.2044278,97.519,97.434,61.73]
[1646085206357,2.59017692,97.519,97.413,4.103]
[1646085206557,71.65344574,97.518,97.413,4.103]
[1646085206757,104.1640416,97.517,97.395,52.6973]
[1646085206957,5.80322225,97.516,97.395,48.5943]
[1646085207156,102.8,97.515,97.396,54.58075297]
[1646085207357,5.67929484,97.514,97.396,54.58075297]
[1646085207558,14.76,97.5,97.396,54.58075297]
[1646085207758,29.38215154,97.499,97.396,54.58075297]
[1646085207962,1.42814326,97.498,97.396,54.58075297]
[1646085208559,1.85800732,97.496,97.396,54.58075297]
[1646085209158,22.11704574,97.495,97.396,54.58075297]
[1646085209361,1.7995419,97.494,97.396,54.58075297]
[1646085209559,2.92584291,97.479,97.396,54.58075297]
[1646085209759,1.29652823,97.479,97.396,54.58075297]
[1646085209960,1.29652823,97.479,97.395,48.5943]
[1646085209961,2.76188226,97.479,97.372,4.104]
[1646085210160,2.76188226,97.479,97.361,76.7857]
[1646085210161,1.56380666,97.477,97.363,4.105]
[1646085210360,1.56380666,97.477,97.362,4.105]
[1646085210561,4.105,97.476,97.362,4.105]
[1646085210761,27.96480006,97.476,97.362,4.105]
[1646085210963,1.74355606,97.475,97.363,118.26685056]
[1646085211162,14.76,97.46,97.364,4.105]
[1646085211364,5.64596684,97.459,97.365,22.6613]
[1646085211565,5.64596684,97.459,97.366,4.106]
[1646085212363,5.64596684,97.459,97.365,22.6613]
[1646085213366,20.59144265,97.458,97.356,4.106]
[1646085213565,20.59144265,97.458,97.336,23.4511]
[1646085213566,1.82322111,97.456,97.336,23.4511]
[1646085213968,102.3,97.454,97.336,23.4511]
[1646085214267,2.73760185,97.439,97.337,54.46914378]
[1646085214466,4.107,97.438,97.337,54.46914378]
[1646085214868,1.4452406,97.436,97.337,54.46914378]
[1646085215267,1.52232622,97.434,97.337,54.46914378]
[1646085215468,14.76,97.42,97.337,54.46914378]
[1646085215669,5.80439906,97.419,97.337,54.46914378]
[1646085216067,4.18574851,97.419,97.337,54.46914378]
[1646085218171,20.59144265,97.418,97.337,54.46914378]
[1646085218369,1.59466958,97.417,97.337,54.46914378]
[1646085218570,1.59466958,97.417,97.305,4.107]
[1646085218770,1.59675506,97.415,97.305,4.107]
[1646085219170,1.54267846,97.414,97.305,65.837]
[1646085219372,14.76,97.4,97.308,3.05780015]
[1646085219570,24.529,97.418,97.31,164.53]
[1646085219769,24.529,97.418,97.313,2.98507609]
[1646085219970,14.76,97.42,97.314,4.108]
[1646085220169,14.76,97.42,97.315,164.53]
[1646085220370,14.76,97.44,97.317,164.53]
[1646085220570,14.76,97.44,97.326,61.73]
[1646085220773,14.76,97.44,97.318,6.37373439]
[1646085220774,14.76,97.44,97.339,102.8]
[1646085220972,4.84187442,97.439,97.358,61.73]
[1646085221173,4.84187442,97.439,97.36,61.73]
[1646085222672,4.84187442,97.439,97.368,61.73]
[1646085223476,14.76,97.44,97.368,61.73]
[1646085223976,14.76,97.44,97.369,61.73]
[1646085224376,5.33886629,97.439,97.369,61.73]
[1646085224876,5.33886629,97.439,97.37,61.73]
[1646085225776,14.76,97.44,97.37,61.73]
[1646085225976,47.05583589,112.38,97.359,55.63238763]
[1646085225977,4.106,97.458,97.377,102.8]
[1646085226178,20.36786527,97.474,97.378,112.1407232]
[1646085226377,4.106,97.481,97.381,102.8]
[1646085226577,14.76,97.48,97.388,61.73]
[1646085226883,4.105,97.479,97.398,61.73]
[1646085227179,14.76,97.48,97.398,61.73]
[1646085227378,14.76,97.48,97.399,3.07077078]
[1646085227782,5.14831951,97.479,97.399,3.07077078]
[1646085227980,5.14831951,97.479,97.399,64.80077078]
[1646085228182,14.76,97.48,97.401,61.73]
[1646085228398,4.105,97.51,97.409,61.73]
[1646085228599,4.105,97.515,97.417,164.53]
[1646085228802,37.328,97.52,97.417,164.53]
[1646085228803,4.103,97.519,97.418,3.04235375]
[1646085229000,37.328,97.52,97.418,3.04235375]
[1646085229200,4.48685809,97.519,97.426,102.8]
[1646085229401,4.103,97.518,97.427,164.53]
[1646085229601,4.103,97.518,97.428,2.34418236]
[1646085229804,17.76912468,97.539,97.429,4.103]
[1646085230007,17.76912468,97.539,97.43,179.29]
[1646085230202,17.76912468,97.539,97.432,164.53]
[1646085230402,17.76912468,97.539,97.434,164.53]
[1646085230602,4.36374838,97.538,97.436,164.53]
[1646085230803,4.36374838,97.538,97.437,2.34051366]
[1646085231006,4.36374838,97.538,97.438,4.103]
[1646085237411,4.36374838,97.538,97.439,61.73]
[1646085237611,4.36374838,97.538,97.44,2.49306718]
[1646085238716,4.36374838,97.538,97.438,65.833]
[1646085238913,4.36374838,97.538,97.439,2.72190242]
[1646085239112,4.36374838,97.538,97.444,61.73]
[1646085239314,4.36374838,97.538,97.448,61.73]
[1646085239516,4.36374838,97.538,97.45,61.73]
[1646085242618,42.2249153,97.537,97.45,61.73]
[1646085242818,1.66632064,97.536,97.45,61.73]
[1646085243218,42.18849268,97.535,97.45,61.73]
[1646085243417,14.76,97.53,97.45,61.73]
[1646085243617,1.8275894,97.529,97.45,61.73]
[1646085243819,23.68463943,97.529,97.45,61.73]
[1646085244219,1.8275894,97.529,97.45,61.73]
[1646085244417,42.18849268,97.528,97.446,61.73]
[1646085244818,20.33144265,97.528,97.446,61.73]
[1646085245020,42.18849268,97.528,97.446,61.73]
[1646085245419,1.549727,97.527,97.447,53.21681364]
[1646085247024,17.80576124,97.526,97.447,53.21681364]
[1646085247227,1.3967048,97.525,97.447,53.21681364]
[1646085247625,5.4997048,97.525,97.447,53.21681364]
[1646085247823,17.80576124,97.524,97.447,53.21681364]
[1646085248024,1.7049731,97.519,97.447,53.21681364]
[1646085248826,14.76,97.52,97.447,53.21681364]
[1646085250328,21.85705003,97.519,97.447,53.21681364]
[1646085253628,14.76,97.52,97.448,61.73]
[1646085253829,14.76,97.54,97.448,61.73]
[1646085255429,14.76,97.54,97.449,102.8]
[1646085255630,21.85705003,97.552,97.466,164.53]
[1646085255830,14.6961589,97.57,97.467,2.76564898]
[1646085256031,18.48277913,97.569,97.47,3.00819162]
[1646085256231,18.48277913,97.569,97.47,17.76819162]
[1646085256430,7.70165965,97.58,97.472,2.67628182]
[1646085256631,20.36786527,97.591,97.472,2.67628182]
[1646085256835,21.89290659,97.599,97.473,2.74678921]
[1646085257029,4.101,97.598,97.473,2.74678921]
[1646085257429,4.77879789,97.598,97.473,2.74678921]
[1646085257633,25.1750281,97.597,97.473,2.74678921]
[1646085258232,3.9599194,97.597,97.473,2.74678921]
[1646085262534,21.2151087,97.606,97.473,2.74678921]
[1646085262735,21.2151087,97.606,97.475,61.73]
[1646085262935,4.1,97.63,97.476,3.06590416]
[1646085263134,4.1,97.63,97.491,61.73]
[1646085263333,4.1,97.63,97.49,14.76]
[1646085263334,0.67779789,97.636,97.494,2.7539735]
[1646085263533,5.38920369,97.631,97.496,164.53]
[1646085263733,6.97685843,97.631,97.511,61.73]
[1646085263934,1.59932396,97.629,97.511,61.73]
[1646085264134,4.099,97.628,97.513,61.73]
[1646085264633,4.099,97.628,97.512,22.7122]
[1646085264634,102.8,97.626,97.512,22.7122]
[1646085264834,184.48,97.62,97.495,53.59277847]
[1646085265035,102.8,97.609,97.444,46.6701]
[1646085265235,102.8,97.605,97.445,105.62079315]
[1646085265437,184.48,97.6,97.446,2.29653494]
[1646085265634,14.76,97.59,97.446,64.02653494]
[1646085265836,1.58292697,97.589,97.447,2.57248301]
[1646085266035,4.101,97.588,97.449,61.73]
[1646085266235,5.49898258,97.588,97.45,2.48974265]
[1646085266436,52.70788258,97.588,97.45,2.48974265]
[1646085266636,43.92878812,97.587,97.449,61.73]
[1646085266837,108.28506523,97.586,97.449,61.73]
[1646085267038,1.59377386,97.585,97.449,61.73]
[1646085267237,14.76,97.57,97.453,61.73]
[1646085267438,1.75797416,97.569,97.463,61.73]
[1646085267637,1.75797416,97.569,97.472,102.8]
[1646085267840,1.75797416,97.569,97.475,61.73]
[1646085268041,1.75797416,97.569,97.475,164.53]
[1646085268237,1.75797416,97.569,97.475,61.73]
[1646085268840,14.76,97.57,97.474,61.73]
[1646085269039,14.76,97.57,97.486,61.73]
[1646085269239,14.76,97.57,97.488,61.73]
[1646085270062,29.4561589,97.57,97.488,61.73]
[1646085270263,14.6961589,97.57,97.488,61.73]
[1646085272063,14.6961589,97.57,97.494,61.73]
[1646085272265,1.58652193,97.581,97.496,61.73]
[1646085273068,21.91796458,97.581,97.496,61.73]
[1646085273269,21.91796458,97.581,97.489,61.73]
[1646085273470,21.89290659,97.58,97.489,61.73]
[1646085273668,47.2089,97.588,97.501,61.73]
[1646085273867,47.2089,97.588,97.503,61.73]
[1646085274270,47.2089,97.588,97.505,164.53]
[1646085274467,47.2089,97.588,97.505,61.73]
[1646085275268,47.2089,97.588,97.505,164.53]
[1646085275467,1.80875998,97.587,97.503,61.73]
[1646085275668,42.49782547,97.587,97.502,23.1001]
[1646085275867,1.67889382,97.586,97.502,23.1001]
[1646085276267,42.22434924,97.585,97.502,23.1001]
[1646085276467,42.22434924,97.585,97.488,23.2422]
[1646085276468,14.76,97.58,97.488,23.2422]
[1646085276668,1.46896492,97.579,97.452,23.5278]
[1646085276868,4.101,97.578,97.452,23.5278]
[1646085277069,102.8,97.577,97.452,23.5278]
[1646085277269,102.8,97.569,97.404,2.8814185]
[1646085277469,14.76,97.56,97.439,59.04957618]
[1646085277670,5.6984305,97.559,97.439,59.04957618]
[1646085278069,21.89290659,97.558,97.439,59.04957618]
[1646085278269,5.74659648,97.557,97.439,59.04957618]
[1646085278571,21.85705003,97.556,97.44,61.73]
[1646085278768,5.87288551,97.555,97.44,61.73]
[1646085278968,26.24075078,97.555,97.44,61.73]
[1646085279170,1.67148512,97.553,97.44,61.73]
[1646085279369,14.76,97.54,97.442,61.73]
[1646085279571,1.46349964,97.539,97.444,164.53]
[1646085280370,14.76,97.54,97.444,164.53]
[1646085280568,14.76,97.54,97.445,2.99467359]
[1646085281970,36.55320893,97.552,97.445,2.99467359]
[1646085282576,20.33144265,97.568,97.446,2.74678921]
[1646085282777,20.33144265,97.568,97.461,164.53]
[1646085282973,20.33144265,97.568,97.464,2.82752911]
[1646085283676,34.72707643,97.568,97.464,2.82752911]
[1646085285075,20.36786527,97.567,97.464,2.82752911]
[1646085285475,20.33144265,97.581,97.465,164.53]
[1646085285675,20.33144265,97.581,97.481,164.53]
[1646085285875,20.33144265,97.581,97.483,164.53]
[1646085286075,20.33144265,97.581,97.484,2.71462728]
[1646085286775,24.0509,97.586,97.484,2.71462728]
[1646085287575,42.18849268,97.585,97.484,2.71462728]
[1646085287975,34.76349905,97.584,97.484,2.71462728]
[1646085288478,36.55320893,97.583,97.484,2.71462728]
[1646085288879,42.18849268,97.582,97.484,2.71462728]
[1646085289279,1.48268154,97.58,97.483,61.73]
[1646085289478,1.47116199,97.579,97.483,61.73]
[1646085289679,1.49307485,97.578,97.483,61.73]
[1646085289878,15.88870863,97.578,97.483,61.73]
[1646085290079,1.39321585,97.577,97.483,61.73]
[1646085290280,1.57812578,97.576,97.483,61.73]
[1646085290679,1.55595455,97.574,97.483,61.73]
[1646085290881,14.76,97.57,97.483,61.73]
[1646085291078,1.49052059,97.569,97.483,61.73]
[1646085291281,1.79804727,97.568,97.483,61.73]
[1646085291484,23.6550973,97.568,97.483,61.73]
[1646085291679,1.42260974,97.567,97.483,61.73]
[1646085291879,21.79047501,97.567,97.483,61.73]
[1646085292078,1.82297584,97.566,97.483,61.73]
[1646085292480,1.47137965,97.565,97.483,61.73]
[1646085292879,1.66021459,97.563,97.483,61.73]
[1646085293480,14.76,97.56,97.483,61.73]
[1646085293880,42.2249153,97.559,97.483,61.73]
[1646085294281,36.55320893,97.558,97.483,61.73]
[1646085294480,1.81037242,97.557,97.463,61.73]
[1646085294681,36.53744885,97.557,97.463,24.7646]
[1646085294882,26.59685405,97.556,97.463,24.7646]
[1646085295082,1.68950828,97.555,97.463,24.7646]
[1646085295282,22.78617768,97.555,97.463,24.7646]
[1646085295482,1.69282988,97.554,97.463,24.7646]
[1646085295680,1.69282988,97.554,97.464,56.18799326]
[1646085295681,14.76,97.54,97.464,56.18799326]
[1646085295883,1.58247675,97.539,97.464,56.18799326]
[1646085296181,21.85705003,97.538,97.464,56.18799326]
[1646085296383,1.39662384,97.537,97.464,56.18799326]
[1646085297384,20.36786527,97.536,97.464,56.18799326]
[1646085297584,1.64407877,97.535,97.464,56.18799326]
[1646085298384,23.2677,97.553,97.465,164.53]
[1646085298583,14.76,97.55,97.467,61.73]
[1646085299188,14.76,97.55,97.468,102.8]
[1646085299387,20.33144265,97.563,97.476,102.8]
[1646085299586,20.33144265,97.563,97.485,164.53]
[1646085299787,20.33144265,97.563,97.485,61.73]
[1646085300089,14.6961589,97.556,97.485,61.73]
[1646085300488,36.55320893,97.556,97.485,61.73]
[1646085300688,21.85705003,97.555,97.486,61.73]
[1646085300889,42.18849268,97.555,97.486,61.73]
[1646085301089,21.85705003,97.555,97.486,61.73]
[1646085301290,20.36786527,97.554,97.486,61.73]
[1646085301489,20.36786527,97.554,97.467,61.73]
[1646085301792,14.76,97.55,97.467,61.73]
[1646085301987,1.75575038,97.549,97.467,61.73]
[1646085302191,36.48282681,97.549,97.467,61.73]
[1646085302489,1.41600732,97.547,97.466,23.2481]
[1646085302889,20.33144265,97.546,97.466,23.2481]
[1646085303089,1.68376932,97.545,97.466,23.2481]
[1646085303289,23.54081935,97.545,97.466,23.2481]
[1646085303496,1.49805538,97.544,97.466,23.2481]
[1646085303690,14.76,97.53,97.447,61.73]
[1646085303890,1.62470304,97.529,97.447,61.73]
[1646085304294,1.71286099,97.528,97.447,61.73]
[1646085304490,21.58072626,97.528,97.447,61.73]
[1646085304691,1.82699738,97.527,97.447,61.73]
[1646085305092,20.36786527,97.526,97.447,61.73]
[1646085305293,1.71179604,97.525,97.447,61.73]
[1646085305692,1.71179604,97.525,97.444,61.73]
[1646085306592,22.04323869,97.525,97.444,61.73]
[1646085306794,22.04323869,97.525,97.425,2.65071944]
[1646085306995,22.04323869,97.525,97.427,61.73]
[1646085307292,1.84723222,97.524,97.427,61.73]
[1646085307495,14.76,97.52,97.427,61.73]
[1646085307695,1.85759296,97.519,97.427,61.73]
[1646085308099,22.22545823,97.519,97.427,61.73]
[1646085308296,1.75951408,97.518,97.427,61.73]
[1646085309198,14.6961589,97.517,97.427,61.73]
[1646085310801,4.103,97.516,97.427,61.73]
[1646085311222,20.33144265,97.515,97.427,61.73]
[1646085311820,20.33144265,97.515,97.426,47.58916831]
[1646085312023,1.66562355,97.514,97.416,22.8836]
[1646085312221,14.76,97.5,97.389,2.53164231]
[1646085312421,25.82786982,97.499,97.379,53.53031938]
[1646085312620,1.40491548,97.498,97.38,2.49529935]
[1646085312823,1.40491548,97.498,97.381,4.105]
[1646085313020,1.40491548,97.498,97.383,61.73]
[1646085313221,42.18849268,97.497,97.385,61.73]